[Event "*** Titled Tuesday 3|2 Blitz (Late)"]
[Site "Chess.com"]
[Date "2016.12.06"]
[Round "7"]
[White "Zlatan56"]
[Black "gmshanmeruga"]
[Result "0-1"]
[WhiteElo "2646"]
[BlackElo "2340"]
[TimeControl "180+2"]
[EndTime "18:22:54 PST"]
[Termination "gmshanmeruga won by resignation"]

1. d4 {[%clk 0:03:02]} 1... Nf6 {[%clk 0:02:57.8]} 2. Nf3 {[%clk 0:03:02.5]}
2... e6 {[%clk 0:02:58.7]} 3. e3 {[%clk 0:03:03.1]} 3... d5 {[%clk 0:02:54.4]}
4. Bd3 {[%clk 0:03:00.8]} 4... c5 {[%clk 0:02:55.7]} 5. c3 {[%clk 0:03:01.4]}
5... Nc6 {[%clk 0:02:53.8]} 6. Nbd2 {[%clk 0:03:01.1]} 6... Bd6 {[%clk
0:02:46.8]} 7. dxc5 {[%clk 0:02:59]} 7... Bxc5 {[%clk 0:02:36.6]} 8. b4 {[%clk
0:03:00.4]} 8... Bd6 {[%clk 0:02:33.8]} 9. Bb2 {[%clk 0:03:00.7]} 9... O-O
{[%clk 0:02:31.4]} 10. O-O {[%clk 0:02:58.8]} 10... b6 {[%clk 0:02:23.7]} 11. a3
{[%clk 0:02:57.9]} 11... Bb7 {[%clk 0:02:21]} 12. c4 {[%clk 0:02:58.3]} 12...
dxc4 {[%clk 0:02:22.4]} 13. Nxc4 {[%clk 0:02:55.8]} 13... Bc7 {[%clk 0:02:21.9]}
14. Qc2 {[%clk 0:02:51.1]} 14... Rc8 {[%clk 0:02:19.3]} 15. Rfd1 {[%clk
0:02:45.5]} 15... b5 {[%clk 0:02:15.3]} 16. Ng5 {[%clk 0:02:11.6]} 16... Qe7
{[%clk 0:02:12.5]} 17. Nxh7 {[%clk 0:01:35.3]} 17... bxc4 {[%clk 0:02:07.9]} 18.
Nxf6+ {[%clk 0:01:32.2]} 18... gxf6 {[%clk 0:02:07.5]} 19. Qxc4 {[%clk
0:01:32.7]} 19... f5 {[%clk 0:01:55.6]} 20. Be2 {[%clk 0:00:30.5]} 20... Ne5
{[%clk 0:01:53.9]} 21. Qd4 {[%clk 0:00:28.3]} 21... Qg5 {[%clk 0:01:48.6]} 22.
g3 {[%clk 0:00:26.8]} 22... Bf3 {[%clk 0:01:23.3]} 23. Kf1 {[%clk 0:00:16.5]}
23... Bxe2+ {[%clk 0:01:16.6]} 24. Kxe2 {[%clk 0:00:18.4]} 24... Qh5+ {[%clk
0:01:18.1]} 25. Kf1 {[%clk 0:00:15.1]} 25... Rfd8 {[%clk 0:01:15.8]} 0-1

[Event "*** Titled Tuesday 3|2 Blitz (Late)"]
[Site "Chess.com"]
[Date "2016.12.06"]
[Round "7"]
[White "silverback96"]
[Black "stalyansky"]
[Result "1-0"]
[WhiteElo "2010"]
[BlackElo "2126"]
[TimeControl "180+2"]
[EndTime "18:23:25 PST"]
[Termination "silverback96 won by checkmate"]

1. d4 {[%clk 0:03:02]} 1... d5 {[%clk 0:03:00.9]} 2. c4 {[%clk 0:03:02.1]} 2...
c6 {[%clk 0:03:01.8]} 3. Nf3 {[%clk 0:03:03.7]} 3... Nf6 {[%clk 0:03:02.6]} 4.
Nc3 {[%clk 0:03:05.6]} 4... e6 {[%clk 0:03:03.7]} 5. g3 {[%clk 0:03:06.5]} 5...
Nbd7 {[%clk 0:03:02.6]} 6. Bg2 {[%clk 0:03:08]} 6... dxc4 {[%clk 0:03:01.5]} 7.
O-O {[%clk 0:03:09.9]} 7... Be7 {[%clk 0:03:00.8]} 8. e4 {[%clk 0:03:10.4]} 8...
O-O {[%clk 0:02:59.7]} 9. a4 {[%clk 0:03:10.9]} 9... a6 {[%clk 0:02:58.8]} 10.
e5 {[%clk 0:03:02.8]} 10... Nd5 {[%clk 0:02:58.3]} 11. Ne4 {[%clk 0:03:04.3]}
11... b5 {[%clk 0:02:49.3]} 12. Bg5 {[%clk 0:03:04.7]} 12... a5 {[%clk
0:01:56.5]} 13. h4 {[%clk 0:02:57]} 13... b4 {[%clk 0:01:54]} 14. Bxe7 {[%clk
0:02:51.4]} 14... Qxe7 {[%clk 0:01:54.6]} 15. Nfg5 {[%clk 0:02:53.3]} 15... h6
{[%clk 0:01:47.3]} 16. Nf3 {[%clk 0:02:46.1]} 16... Ba6 {[%clk 0:01:47]} 17. Re1
{[%clk 0:02:39.7]} 17... Rab8 {[%clk 0:01:27.1]} 18. g4 {[%clk 0:02:33.3]} 18...
c5 {[%clk 0:01:10.3]} 19. g5 {[%clk 0:02:33.8]} 19... h5 {[%clk 0:00:32.5]} 20.
g6 {[%clk 0:02:31.6]} 20... fxg6 {[%clk 0:00:30.3]} 21. Nfg5 {[%clk 0:02:33.1]}
21... cxd4 {[%clk 0:00:22.8]} 22. Qxd4 {[%clk 0:02:35]} 22... Nf4 {[%clk
0:00:21.8]} 23. Ng3 {[%clk 0:02:13.9]} 23... Nxg2 {[%clk 0:00:18.6]} 24. Kxg2
{[%clk 0:02:13.5]} 24... Bb7+ {[%clk 0:00:19]} 25. Kg1 {[%clk 0:02:11.3]} 25...
Bd5 {[%clk 0:00:19.6]} 26. Qd2 {[%clk 0:02:08.4]} 26... Nc5 {[%clk 0:00:10.9]}
27. Re3 {[%clk 0:02:07.1]} 27... Nd3 {[%clk 0:00:11.1]} 28. Rxd3 {[%clk
0:02:07.2]} 28... cxd3 {[%clk 0:00:11.5]} 29. Qxd3 {[%clk 0:02:09.1]} 29... Qe8
{[%clk 0:00:08.9]} 30. Nxh5 {[%clk 0:02:08.1]} 30... Rf5 {[%clk 0:00:07.9]} 31.
Ng3 {[%clk 0:02:06.7]} 31... Rxe5 {[%clk 0:00:06]} 32. Qd4 {[%clk 0:02:04.4]}
32... Rf5 {[%clk 0:00:04.7]} 33. Nxf5 {[%clk 0:02:03.1]} 33... gxf5 {[%clk
0:00:05.9]} 34. Qe5 {[%clk 0:02:03.8]} 34... Rc8 {[%clk 0:00:06.4]} 35. Rd1
{[%clk 0:02:00]} 35... Qh5 {[%clk 0:00:05.5]} 36. Rxd5 {[%clk 0:01:58.1]} 36...
exd5 {[%clk 0:00:04.8]} 37. Qe6+ {[%clk 0:01:56.8]} 37... Kf8 {[%clk 0:00:04.7]}
38. Qxc8+ {[%clk 0:01:57]} 38... Ke7 {[%clk 0:00:06.1]} 39. Qc7+ {[%clk
0:01:56.5]} 39... Kf6 {[%clk 0:00:06.7]} 40. Qd6# {[%clk 0:01:56]} 1-0

[Event "*** Titled Tuesday 3|2 Blitz (Late)"]
[Site "Chess.com"]
[Date "2016.12.06"]
[Round "7"]
[White "Genghis_K"]
[Black "LPSupi"]
[Result "1-0"]
[WhiteElo "2688"]
[BlackElo "2606"]
[TimeControl "180+2"]
[EndTime "18:24:13 PST"]
[Termination "Genghis_K won by resignation"]

1. d4 {[%clk 0:03:02]} 1... Nf6 {[%clk 0:03:00.1]} 2. Bf4 {[%clk 0:03:02.9]}
2... b6 {[%clk 0:02:59.5]} 3. f3 {[%clk 0:03:01.5]} 3... d5 {[%clk 0:02:59.6]}
4. e4 {[%clk 0:02:52.3]} 4... dxe4 {[%clk 0:03:00.8]} 5. Nc3 {[%clk 0:02:53.8]}
5... Bb7 {[%clk 0:02:55.9]} 6. d5 {[%clk 0:02:52]} 6... e6 {[%clk 0:02:47]} 7.
dxe6 {[%clk 0:02:46.4]} 7... Qxd1+ {[%clk 0:02:47.3]} 8. Rxd1 {[%clk 0:02:48.3]}
8... fxe6 {[%clk 0:02:48.9]} 9. Nxe4 {[%clk 0:02:44.7]} 9... Nxe4 {[%clk
0:02:43.3]} 10. fxe4 {[%clk 0:02:46.6]} 10... Bd6 {[%clk 0:02:41.9]} 11. Bb5+
{[%clk 0:02:39.6]} 11... Bc6 {[%clk 0:01:56.7]} 12. Bxc6+ {[%clk 0:02:34.9]}
12... Nxc6 {[%clk 0:01:57.9]} 13. Bxd6 {[%clk 0:02:36.5]} 13... cxd6 {[%clk
0:01:59.3]} 14. Rxd6 {[%clk 0:02:37.7]} 14... Rc8 {[%clk 0:02:00.7]} 15. Nf3
{[%clk 0:02:31.7]} 15... Ke7 {[%clk 0:02:01.5]} 16. Rd2 {[%clk 0:02:33.3]} 16...
Nb4 {[%clk 0:01:15.9]} 17. c3 {[%clk 0:02:29.2]} 17... Na6 {[%clk 0:01:16.9]}
18. Ke2 {[%clk 0:02:17.2]} 18... Nc5 {[%clk 0:01:16.8]} 19. Ke3 {[%clk
0:02:18.6]} 19... Rc7 {[%clk 0:01:01]} 20. Rhd1 {[%clk 0:02:19.8]} 20... Rhc8
{[%clk 0:00:47.9]} 21. Ne5 {[%clk 0:02:20.8]} 21... Ke8 {[%clk 0:00:34.3]} 22.
Rf1 {[%clk 0:02:12.4]} 22... Nb7 {[%clk 0:00:27]} 23. Rdf2 {[%clk 0:02:07.4]}
23... Nd6 {[%clk 0:00:27.5]} 24. Rf8+ {[%clk 0:02:07.4]} 24... Ke7 {[%clk
0:00:28.7]} 25. Rxc8 {[%clk 0:02:07.8]} 25... Rxc8 {[%clk 0:00:29.2]} 26. Kd3
{[%clk 0:01:48.1]} 26... Rc5 {[%clk 0:00:28.6]} 27. Nf3 {[%clk 0:01:48.9]} 27...
Nc4 {[%clk 0:00:20.2]} 28. b3 {[%clk 0:01:49.6]} 28... Ne5+ {[%clk 0:00:20.7]}
29. Nxe5 {[%clk 0:01:49.1]} 29... Rxe5 {[%clk 0:00:22.4]} 30. b4 {[%clk
0:01:39.7]} 30... Rh5 {[%clk 0:00:22.3]} 31. h3 {[%clk 0:01:34.7]} 31... Rg5
{[%clk 0:00:23.4]} 32. g4 {[%clk 0:01:36.1]} 32... h5 {[%clk 0:00:24.3]} 33. Rg1
{[%clk 0:01:32.6]} 33... Kd6 {[%clk 0:00:25]} 34. Kd4 {[%clk 0:01:26.8]} 34...
b5 {[%clk 0:00:21.4]} 35. a3 {[%clk 0:01:20.5]} 35... Kc6 {[%clk 0:00:16.5]} 36.
e5 {[%clk 0:01:18.9]} 36... a6 {[%clk 0:00:10.4]} 37. Ke4 {[%clk 0:01:19]} 37...
hxg4 {[%clk 0:00:11.7]} 38. hxg4 {[%clk 0:01:15.8]} 38... Rg6 {[%clk 0:00:12.5]}
39. g5 {[%clk 0:01:17.1]} 1-0

[Event "*** Titled Tuesday 3|2 Blitz (Late)"]
[Site "Chess.com"]
[Date "2016.12.06"]
[Round "7"]
[White "VitaliyBernadskiy"]
[Black "chessking2151"]
[Result "0-1"]
[WhiteElo "2552"]
[BlackElo "2401"]
[TimeControl "180+2"]
[EndTime "18:24:24 PST"]
[Termination "chessking2151 won on time"]

1. e4 {[%clk 0:02:58.5]} 1... e5 {[%clk 0:02:59.4]} 2. Nf3 {[%clk 0:02:59.7]}
2... Nc6 {[%clk 0:02:57.9]} 3. Bc4 {[%clk 0:03:00.3]} 3... f5 {[%clk 0:02:58.2]}
4. d3 {[%clk 0:02:52.1]} 4... Nf6 {[%clk 0:02:56.6]} 5. Ng5 {[%clk 0:02:48.4]}
5... d5 {[%clk 0:02:46]} 6. exd5 {[%clk 0:02:48]} 6... Na5 {[%clk 0:02:45.8]} 7.
O-O {[%clk 0:02:45.1]} 7... h6 {[%clk 0:02:41.2]} 8. Nf3 {[%clk 0:02:43.1]} 8...
Nxc4 {[%clk 0:02:42.1]} 9. dxc4 {[%clk 0:02:44.1]} 9... e4 {[%clk 0:02:43.7]}
10. Ne5 {[%clk 0:02:40.2]} 10... Bd6 {[%clk 0:02:41.5]} 11. Ng6 {[%clk
0:02:37.6]} 11... Rg8 {[%clk 0:02:42.8]} 12. Bf4 {[%clk 0:02:32.2]} 12... Kf7
{[%clk 0:02:41.7]} 13. Ne5+ {[%clk 0:02:33]} 13... Ke8 {[%clk 0:02:34.7]} 14.
Bg3 {[%clk 0:01:55.4]} 14... Qe7 {[%clk 0:02:23.9]} 15. f4 {[%clk 0:01:13.8]}
15... g5 {[%clk 0:01:50.8]} 16. c5 {[%clk 0:01:14.4]} 16... Bxc5+ {[%clk
0:01:50.5]} 17. Kh1 {[%clk 0:01:15]} 17... Bd6 {[%clk 0:01:48.3]} 18. Nc4 {[%clk
0:01:15.1]} 18... Ng4 {[%clk 0:01:46.2]} 19. Nxd6+ {[%clk 0:01:13.9]} 19... cxd6
{[%clk 0:01:47.1]} 20. Qd4 {[%clk 0:01:13]} 20... Bd7 {[%clk 0:01:43.5]} 21. Nc3
{[%clk 0:01:12.8]} 21... b5 {[%clk 0:01:19.5]} 22. Rae1 {[%clk 0:01:12.5]} 22...
Nf6 {[%clk 0:01:00.8]} 23. a3 {[%clk 0:01:06.3]} 23... Kf7 {[%clk 0:00:57.5]}
24. fxg5 {[%clk 0:01:00.1]} 24... hxg5 {[%clk 0:00:43.5]} 25. Rxe4 {[%clk
0:00:55.3]} 25... Nxe4 {[%clk 0:00:33.3]} 26. Nxe4 {[%clk 0:00:56.4]} 26... Kg6
{[%clk 0:00:30.2]} 27. Nxd6 {[%clk 0:00:45.1]} 27... f4 {[%clk 0:00:21.6]} 28.
Ne4 {[%clk 0:00:35.4]} 28... Bf5 {[%clk 0:00:20.3]} 29. Nc5 {[%clk 0:00:27.7]}
29... fxg3 {[%clk 0:00:20.5]} 30. d6 {[%clk 0:00:26.1]} 30... Qe2 {[%clk
0:00:21.3]} 31. Rg1 {[%clk 0:00:10.2]} 31... Rh8 {[%clk 0:00:22.2]} 32. h3
{[%clk 0:00:09.5]} 32... Rxh3+ {[%clk 0:00:22.4]} 0-1

[Event "*** Titled Tuesday 3|2 Blitz (Late)"]
[Site "Chess.com"]
[Date "2016.12.06"]
[Round "7"]
[White "MFBerna"]
[Black "micfel"]
[Result "0-1"]
[WhiteElo "2188"]
[BlackElo "2282"]
[TimeControl "180+2"]
[EndTime "18:24:28 PST"]
[Termination "micfel won by resignation"]

1. e4 {[%clk 0:03:02]} 1... e5 {[%clk 0:02:58.7]} 2. Nf3 {[%clk 0:03:02.8]} 2...
Nf6 {[%clk 0:02:59.3]} 3. Nxe5 {[%clk 0:03:03.3]} 3... d6 {[%clk 0:03:00.2]} 4.
Nf3 {[%clk 0:03:04.5]} 4... Nxe4 {[%clk 0:03:01.1]} 5. d4 {[%clk 0:03:05.6]}
5... d5 {[%clk 0:03:02]} 6. Bd3 {[%clk 0:03:06.3]} 6... Be7 {[%clk 0:03:02.5]}
7. O-O {[%clk 0:03:06.9]} 7... O-O {[%clk 0:03:03.4]} 8. c4 {[%clk 0:03:03.9]}
8... c6 {[%clk 0:03:04.1]} 9. Nc3 {[%clk 0:03:04.4]} 9... Nxc3 {[%clk
0:03:03.9]} 10. bxc3 {[%clk 0:03:06.3]} 10... Bg4 {[%clk 0:03:04.5]} 11. h3
{[%clk 0:03:06.3]} 11... Bh5 {[%clk 0:03:04.7]} 12. Qb3 {[%clk 0:02:54.2]} 12...
Bxf3 {[%clk 0:03:01.5]} 13. Qxb7 {[%clk 0:02:40.7]} 13... Nd7 {[%clk 0:02:57.1]}
14. gxf3 {[%clk 0:02:40.4]} 14... dxc4 {[%clk 0:02:52.1]} 15. Bxc4 {[%clk
0:02:36.8]} 15... Nb6 {[%clk 0:02:52.6]} 16. Bb3 {[%clk 0:02:25.7]} 16... c5
{[%clk 0:02:51.5]} 17. dxc5 {[%clk 0:02:14.6]} 17... Bxc5 {[%clk 0:02:51.6]} 18.
Bf4 {[%clk 0:02:09.1]} 18... Qh4 {[%clk 0:02:50.1]} 19. Bh2 {[%clk 0:01:50.4]}
19... Qxh3 {[%clk 0:02:49.5]} 20. Rae1 {[%clk 0:01:36.5]} 20... h6 {[%clk
0:02:39.1]} 21. Qe4 {[%clk 0:01:23]} 21... Rac8 {[%clk 0:02:30.8]} 22. Qg4
{[%clk 0:01:14.8]} 22... Qxg4+ {[%clk 0:02:30.1]} 23. fxg4 {[%clk 0:01:16.7]}
23... Ba3 {[%clk 0:02:28]} 24. Be5 {[%clk 0:01:05.8]} 24... Nc4 {[%clk
0:02:25.2]} 25. Bxc4 {[%clk 0:00:51.6]} 25... Rxc4 {[%clk 0:02:24.4]} 26. f3
{[%clk 0:00:50]} 26... Bb2 {[%clk 0:02:19.7]} 27. Re3 {[%clk 0:00:24.4]} 27...
Re8 {[%clk 0:02:15.3]} 28. Rfe1 {[%clk 0:00:21.4]} 28... Rec8 {[%clk 0:01:59.7]}
29. Kf1 {[%clk 0:00:18.4]} 29... Bxc3 {[%clk 0:01:55.4]} 30. Bxc3 {[%clk
0:00:20.3]} 30... Rxc3 {[%clk 0:01:56.1]} 31. Rxc3 {[%clk 0:00:22.2]} 31... Rxc3
{[%clk 0:01:56.8]} 32. Re8+ {[%clk 0:00:14]} 32... Kh7 {[%clk 0:01:57.1]} 33.
Kf2 {[%clk 0:00:09.2]} 33... Rc2+ {[%clk 0:01:57.1]} 34. Kg3 {[%clk 0:00:10.4]}
34... Rxa2 {[%clk 0:01:57.1]} 35. Re7 {[%clk 0:00:11.1]} 35... Kg6 {[%clk
0:01:54.9]} 36. Rb7 {[%clk 0:00:11.5]} 36... a5 {[%clk 0:01:53.9]} 37. Rb6+
{[%clk 0:00:10.9]} 37... f6 {[%clk 0:01:53.7]} 38. Ra6 {[%clk 0:00:10.9]} 38...
a4 {[%clk 0:01:49.3]} 39. f4 {[%clk 0:00:09.7]} 39... h5 {[%clk 0:01:42.9]} 40.
gxh5+ {[%clk 0:00:05.9]} 40... Kxh5 {[%clk 0:01:43.3]} 41. Ra5+ {[%clk
0:00:07.5]} 41... Kg6 {[%clk 0:01:43.4]} 42. Kg4 {[%clk 0:00:06.8]} 42... f5+
{[%clk 0:01:39]} 43. Kf3 {[%clk 0:00:06.4]} 43... Ra3+ {[%clk 0:01:37.6]} 44.
Kf2 {[%clk 0:00:07.2]} 44... Ra1 {[%clk 0:01:34.5]} 45. Ra6+ {[%clk 0:00:04.9]}
45... Kh5 {[%clk 0:01:34.3]} 46. Kg3 {[%clk 0:00:05.9]} 46... a3 {[%clk
0:01:30.3]} 47. Ra7 {[%clk 0:00:05.3]} 47... a2 {[%clk 0:01:29.8]} 48. Kg2
{[%clk 0:00:05.7]} 0-1

[Event "*** Titled Tuesday 3|2 Blitz (Late)"]
[Site "Chess.com"]
[Date "2016.12.06"]
[Round "7"]
[White "ShimanovAlex"]
[Black "platy3"]
[Result "1-0"]
[WhiteElo "2678"]
[BlackElo "2692"]
[TimeControl "180+2"]
[EndTime "18:24:51 PST"]
[Termination "ShimanovAlex won by resignation"]

1. d4 {[%clk 0:02:58.2]} 1... Nf6 {[%clk 0:03:00.3]} 2. Nf3 {[%clk 0:02:58.9]}
2... e6 {[%clk 0:02:58.8]} 3. Bf4 {[%clk 0:02:56.3]} 3... Be7 {[%clk 0:02:58.8]}
4. Nc3 {[%clk 0:02:55]} 4... d5 {[%clk 0:02:59]} 5. e3 {[%clk 0:02:52.6]} 5...
O-O {[%clk 0:02:59.5]} 6. Bd3 {[%clk 0:02:51.7]} 6... c5 {[%clk 0:02:57.5]} 7.
dxc5 {[%clk 0:02:51.8]} 7... Nbd7 {[%clk 0:02:58.1]} 8. b4 {[%clk 0:02:50.5]}
8... a5 {[%clk 0:02:56.8]} 9. a3 {[%clk 0:02:49.2]} 9... Nb8 {[%clk 0:02:32.8]}
10. Nb5 {[%clk 0:02:31.7]} 10... Na6 {[%clk 0:02:10.9]} 11. c3 {[%clk
0:02:32.3]} 11... b6 {[%clk 0:02:10.6]} 12. c6 {[%clk 0:02:29.1]} 12... Qe8
{[%clk 0:02:00.9]} 13. Nfd4 {[%clk 0:02:19.7]} 13... Ne4 {[%clk 0:01:53.2]} 14.
Bxe4 {[%clk 0:02:11.2]} 14... dxe4 {[%clk 0:01:52.9]} 15. Nd6 {[%clk 0:02:11.1]}
15... Qd8 {[%clk 0:01:51.9]} 16. Nxe4 {[%clk 0:02:03.8]} 16... Qd5 {[%clk
0:01:47]} 17. Qf3 {[%clk 0:01:30.5]} 17... Rd8 {[%clk 0:01:28.7]} 18. O-O {[%clk
0:01:26.8]} 18... e5 {[%clk 0:01:27]} 19. c4 {[%clk 0:01:27.5]} 19... Qxc4
{[%clk 0:01:22.7]} 20. Bxe5 {[%clk 0:01:21.1]} 20... f6 {[%clk 0:01:23.5]} 21.
Bg3 {[%clk 0:01:02.7]} 21... Be6 {[%clk 0:00:59.6]} 22. Nxe6 {[%clk 0:00:59]}
22... Qxe6 {[%clk 0:00:59.8]} 23. b5 {[%clk 0:01:00.5]} 23... Nc5 {[%clk
0:00:59.9]} 24. Nxc5 {[%clk 0:01:00.8]} 24... Bxc5 {[%clk 0:01:01]} 25. a4
{[%clk 0:00:55.1]} 25... Rac8 {[%clk 0:01:01.9]} 26. Rfd1 {[%clk 0:00:55.5]}
26... Kf7 {[%clk 0:01:00.9]} 27. h3 {[%clk 0:00:56.1]} 27... g6 {[%clk
0:00:58.8]} 28. Rxd8 {[%clk 0:00:55.3]} 28... Rxd8 {[%clk 0:00:59.8]} 29. Rd1
{[%clk 0:00:56.9]} 29... Rxd1+ {[%clk 0:00:51.4]} 30. Qxd1 {[%clk 0:00:57.7]}
30... Ke7 {[%clk 0:00:53]} 31. Bc7 {[%clk 0:00:52.2]} 31... Qc8 {[%clk
0:00:52.3]} 32. Bf4 {[%clk 0:00:50.5]} 32... Qe6 {[%clk 0:00:51.7]} 33. Qd3
{[%clk 0:00:48.9]} 33... Ke8 {[%clk 0:00:45.3]} 34. c7 {[%clk 0:00:36.2]} 34...
Qc8 {[%clk 0:00:46]} 35. Qd5 {[%clk 0:00:34.8]} 35... Ke7 {[%clk 0:00:46.9]} 36.
Qc6 {[%clk 0:00:28.7]} 36... g5 {[%clk 0:00:47.4]} 37. Bg3 {[%clk 0:00:27.7]}
37... h5 {[%clk 0:00:48.4]} 38. h4 {[%clk 0:00:28.9]} 38... g4 {[%clk
0:00:48.3]} 39. Bf4 {[%clk 0:00:29.7]} 39... Kf7 {[%clk 0:00:49.6]} 40. Qe4
{[%clk 0:00:25]} 40... Kg7 {[%clk 0:00:46.1]} 41. Qd5 {[%clk 0:00:24.9]} 41...
Be7 {[%clk 0:00:46.6]} 42. Bd6 {[%clk 0:00:21.7]} 1-0

[Event "*** Titled Tuesday 3|2 Blitz (Late)"]
[Site "Chess.com"]
[Date "2016.12.06"]
[Round "7"]
[White "MaestroASK"]
[Black "Bigfish1995"]
[Result "1-0"]
[WhiteElo "2490"]
[BlackElo "2692"]
[TimeControl "180+2"]
[EndTime "18:24:53 PST"]
[Termination "MaestroASK won by resignation"]

1. g3 {[%clk 0:03:01.5]} 1... d5 {[%clk 0:03:00.5]} 2. d3 {[%clk 0:03:02.2]}
2... e5 {[%clk 0:03:01.6]} 3. e4 {[%clk 0:03:02.8]} 3... dxe4 {[%clk 0:03:01.5]}
4. dxe4 {[%clk 0:03:03.5]} 4... Qxd1+ {[%clk 0:03:02.2]} 5. Kxd1 {[%clk
0:03:05]} 5... Bc5 {[%clk 0:03:03]} 6. f3 {[%clk 0:03:05.7]} 6... Be6 {[%clk
0:03:00.1]} 7. Bh3 {[%clk 0:03:04.1]} 7... Bc4 {[%clk 0:02:49.1]} 8. Nd2 {[%clk
0:03:02.9]} 8... Ba6 {[%clk 0:02:47.7]} 9. Bf1 {[%clk 0:03:03.1]} 9... Ne7
{[%clk 0:02:29.9]} 10. c3 {[%clk 0:02:58.2]} 10... h5 {[%clk 0:02:20.9]} 11. Nh3
{[%clk 0:02:48.7]} 11... f6 {[%clk 0:02:17.9]} 12. b4 {[%clk 0:02:45.9]} 12...
Bxf1 {[%clk 0:02:15.7]} 13. Rxf1 {[%clk 0:02:45.7]} 13... Bb6 {[%clk 0:02:12.1]}
14. a4 {[%clk 0:02:41.3]} 14... a5 {[%clk 0:02:12.2]} 15. b5 {[%clk 0:02:41.3]}
15... Nd7 {[%clk 0:02:11.7]} 16. Nc4 {[%clk 0:02:35.9]} 16... Bc5 {[%clk
0:02:12.4]} 17. Kc2 {[%clk 0:02:35.3]} 17... Nc8 {[%clk 0:02:11.6]} 18. Nf2
{[%clk 0:02:32.3]} 18... Nd6 {[%clk 0:02:06.5]} 19. Nxd6+ {[%clk 0:02:31.9]}
19... cxd6 {[%clk 0:02:07.4]} 20. Nd3 {[%clk 0:02:31.2]} 20... Rc8 {[%clk
0:02:06]} 21. Nxc5 {[%clk 0:02:19.2]} 21... Nxc5 {[%clk 0:02:06.7]} 22. Be3
{[%clk 0:02:18.7]} 22... Ke7 {[%clk 0:02:06.8]} 23. Rfd1 {[%clk 0:02:15.9]}
23... g5 {[%clk 0:01:56.3]} 24. Rd5 {[%clk 0:02:14.3]} 24... g4 {[%clk
0:01:56.8]} 25. Bxc5 {[%clk 0:02:13.7]} 25... Rxc5 {[%clk 0:01:56.6]} 26. Rxc5
{[%clk 0:02:05.3]} 26... dxc5 {[%clk 0:01:57.6]} 27. Rf1 {[%clk 0:02:04.1]}
27... gxf3 {[%clk 0:01:23.5]} 28. Rxf3 {[%clk 0:02:04]} 28... h4 {[%clk
0:01:24.7]} 29. g4 {[%clk 0:02:01.9]} 29... h3 {[%clk 0:01:25.7]} 30. Kb3 {[%clk
0:02:00.8]} 30... Ke6 {[%clk 0:01:07.8]} 31. Kc4 {[%clk 0:01:50.4]} 31... b6
{[%clk 0:01:07.3]} 32. Rg3 {[%clk 0:01:47.3]} 32... Rh4 {[%clk 0:00:55.5]} 33.
Rg1 {[%clk 0:01:46.2]} 33... Kd6 {[%clk 0:00:45.9]} 34. Rg3 {[%clk 0:01:45]}
34... Ke6 {[%clk 0:00:43.7]} 35. Rg1 {[%clk 0:01:45.1]} 35... Kd6 {[%clk
0:00:40.7]} 36. Kd3 {[%clk 0:01:42.5]} 36... Rh8 {[%clk 0:00:31.4]} 37. Ke3
{[%clk 0:01:38.8]} 37... Ke6 {[%clk 0:00:20.6]} 38. Rd1 {[%clk 0:01:37.9]} 38...
c4 {[%clk 0:00:20.9]} 39. Kf3 {[%clk 0:01:37.5]} 39... Ke7 {[%clk 0:00:21.8]}
40. Kg3 {[%clk 0:01:36.1]} 40... Ke6 {[%clk 0:00:23.2]} 41. Rf1 {[%clk
0:01:31.3]} 41... Rd8 {[%clk 0:00:22]} 42. Rf3 {[%clk 0:01:31.5]} 42... Rd2
{[%clk 0:00:22.8]} 43. Kxh3 {[%clk 0:01:30.7]} 43... Ra2 {[%clk 0:00:22.9]} 44.
Kg3 {[%clk 0:01:29.4]} 44... Rxa4 {[%clk 0:00:23.8]} 45. h4 {[%clk 0:01:30.8]}
45... Ra1 {[%clk 0:00:24.8]} 46. g5 {[%clk 0:01:28.8]} 46... fxg5 {[%clk
0:00:23.8]} 47. hxg5 {[%clk 0:01:29.6]} 47... Kd6 {[%clk 0:00:21.6]} 48. Kh2
{[%clk 0:01:24]} 48... Kc5 {[%clk 0:00:21]} 49. g6 {[%clk 0:01:24.9]} 49... Ra2+
{[%clk 0:00:20.8]} 50. Kh3 {[%clk 0:01:25]} 50... Rf2 {[%clk 0:00:04.3]} 1-0